Cogmind - Beta 17 @@@ ROGUE MODE // 2026.07.10 @ 17:27:28 // Winter2022/Polymind Player: EN-G1N Result: Destroyed by G-67 Veteran with Field Laser Performance ------------- Evolutions (4) 2000 Regions Visited (7) 1400 Robots Destroyed (0) 0 Value Destroyed (0) 0 Prototype IDs (1) 20 Alien Tech Used (0) 0 Bonus (4291) 4291 TOTAL SCORE: 7601 Bonus ------- Polymind Skill 2966 Pacifist 1325 Cogmind --------- Core Integrity 0/850 Matter 0/0 Energy 13/100 System Corruption 1% Temperature Cool (0) Movement Core (50) Location -6/Factory Parts ------- > --- POWER (1) -------- (None) > --- PROPULSION (2) --- (None) > --- UTILITY (1) ------ (None) > --- WEAPON (1) ------- (None) > --- INVENTORY (0) ---- (None) Peak State ------------ > --- POWER ------------ (None) > --- PROPULSION ------- Improved Hover Unit > --- UTILITY ---------- Hacking Suite System Shield System Restoration Module > --- WEAPON ----------- Improved Datajack > --- INVENTORY -------- (None) [Rating: 15] Favorites ----------- Power Light Ion Engine Engine Light Ion Engine Power Core Light Nuclear Core Propulsion Wheel Treads Light Treads Leg Improved Aluminum Leg Wheel Wheel Hover Unit Improved Hover Unit Flight Unit Flight Unit Utility Small Storage Unit Device Tractor Beam Storage Small Storage Unit Processor Transport Network Coupler Hackware Hacking Suite Protection Core Shielding Weapon Light Assault Rifle Ballistic Gun Light Assault Rifle Special Weapon Mining Laser Slashing Weapon Katana Special Melee Weapon Improved Datajack Build | -11 -10 -9 -9 -8 -7 -7 -6 ------- Run | Yrd Mat Mat Min Mat Fac Sto Fac Slots Evolved . | . . . . . . . . Power . | . . . . . . . . Propulsion . | . . . . . . . . Utility . | . . . . . . . . Weapon . | . . . . . . . . Parts Attached . | . . . . . . . . Power . | . . . . . . . . Engine . | . . . . . . . . Core . | . . . . . . . . Reactor . | . . . . . . . . Propulsion . | . . . . . . . . Treads . | . . . . . . . . Leg . | . . . . . . . . Wheel . | . . . . . . . . Hover . | . . . . . . . . Flight . | . . . . . . . . Utility . | . . . . . . . . Device . | . . . . . . . . Storage . | . . . . . . . . Processor . | . . . . . . . . Hackware . | . . . . . . . . Protection . | . . . . . . . . Artifact . | . . . . . . . . Weapon . | . . . . . . . . Energy Gun . | . . . . . . . . Energy Cannon . | . . . . . . . . Ballistic Gun . | . . . . . . . . Ballistic Cannon . | . . . . . . . . Launcher . | . . . . . . . . Special Weapon . | . . . . . . . . Impact Weapon . | . . . . . . . . Slashing Weapon . | . . . . . . . . Piercing Weapon . | . . . . . . . . Special Melee Weapon . | . . . . . . . . Unidentified Prototypes . | . . . . . . . . Parts Lost 13 | . . . . 4 . . 9 Power 4 | . . . . 2 . . 2 Propulsion 7 | . . . . 2 . . 5 Utility 2 | . . . . . . . 2 Weapon . | . . . . . . . . Highest Loss Streak 5 | . . . . 3 . . 5 To Critical Strikes . | . . . . . . . . Average Backups . | . 2 4 . . . . . Power . | . . . . . . . . Propulsion . | . . . . . . . . Utility . | . . . . . . . . Weapon . | . 2 4 . . . . . Tool/Special . | . . . . . . . . Unused Backups 15 | . . 4 6 . . 5 . Power . | . . . . . . . . Propulsion . | . . . . . . . . Utility 3 | . . . 1 . . 2 . Weapon 11 | . . 4 5 . . 2 . Tool/Special 1 | . . . . . . 1 . Average Slot Usage (%) 76 | . 100 100 91 87 75 83 34 Engine 14 | . 20 18 17 20 25 18 1 Core 1 | . . . . . . 1 3 Treads 2 | . . 15 3 . . . . Wheel 22 | . 40 21 32 10 . 30 4 Hover 1 | . . . . 5 . . 2 Flight 6 | . . . . 28 25 6 6 Device 9 | . 20 18 17 . . 5 2 Storage 10 | . 20 18 10 5 . 15 3 Processor 1 | . . 7 1 . . . . Hackware 1 | . . . . 2 . . 5 Ballistic Gun 4 | . . . . 14 25 4 3 Special Weapon 1 | . . . 7 . . . . Peak Build Rating 15 | 5 5 8 8 13 3 9 15 Average Rating 4 | 2 5 6 6 4 3 4 3 On Entrance 4 | . 5 5 8 4 3 3 9 Avg Prop Armor Cover (%) . | . . . . . . . . Naked Turns 189 | . . 1 1 2 . 3 182 Heaviest Build 15 | 9 9 15 15 10 4 9 8 Greatest Support 46 | 32 32 46 46 26 4 32 20 Greatest Overweight (x) . | . . . . . . . . Average Overweight (x) . | . . . . . . . . Largest Inventory Capacity 6 | 4 4 6 6 1 . 4 1 Average Capacity 1 | 1 4 4 . . . 1 . Most Carried 6 | . 4 6 6 . . 4 . Average Carried . | . 2 4 . . . . . Final Capacity 6 | 4 4 6 1 . . . . Final Carried 6 | . 4 6 . . . . . Class Distribution -------------------- 28% | Worker 20% | Recycler 14% | Swarmer 14% | Cogmind 10% | Tunneler 5% | Operator 5% | Hauler Dominant Class ---------------- Recycler | -10/Materials Recycler | -9/Materials Tunneler | -9/Mines Swarmer | -8/Materials Swarmer | -7/Factory Worker | -7/Storage Cogmind | -6/Factory Resources | -11 -10 -9 -9 -8 -7 -7 -6 ----------- Run | Yrd Mat Mat Min Mat Fac Sto Fac Matter Collected . | . . . . . . . . Remotely . | . . . . . . . . Salvage Created . | . . . . . . . . Parts . | . . . . . . . . Haulers Intercepted . | . . . . . . . . Recyclers Shooed . | . . . . . . . . Parts Field Recycled . | . . . . . . . . Retrieved Matter . | . . . . . . . . Parts Self-Destructed . | . . . . . . . . Prevented . | . . . . . . . . Parts Restored . | . . . . . . . . Kills | -11 -10 -9 -9 -8 -7 -7 -6 ------- Run | Yrd Mat Mat Min Mat Fac Sto Fac Combat Hostiles Destroyed . | . . . . . . . . Classes Destroyed . | . . . . . . . . Best Kill Streak . | . . . . . . . . Combat Bots Only . | . . . . . . . . Max Kills in Single Turn . | . . . . . . . . Gunslinging . | . . . . . . . . Exploded . | . . . . . . . . Melee . | . . . . . . . . Uniques/NPCs Destroyed . | . . . . . . . . Combat | -11 -10 -9 -9 -8 -7 -7 -6 -------- Run | Yrd Mat Mat Min Mat Fac Sto Fac Hostile Shots Fired 275 | . . . . 115 . 43 117 Missed 135 | . . . . 57 . 31 47 Hits 140 | . . . . 58 . 12 70 Melee 1 | . . . . 1 . . . Projectile 139 | . . . . 57 . 12 70 AOE 1 | . . . . . . . 1 Critical Strikes 6 | . . . . 1 . . 5 Damage Taken 1943 | . . . . 599 . 117 1227 Core 1087 | . . . . 196 . 39 852 Absorbed by Shields . | . . . . . . . . Redirected to Shielding 6 | . . . . 6 . . . Core Remaining (%) 91 | 100 100 . 100 64 . 94 . Volleys Fired . | . . . . . . . . Largest . | . . . . . . . . Hottest . | . . . . . . . . Shots Fired . | . . . . . . . . Gun . | . . . . . . . . Cannon . | . . . . . . . . Launcher . | . . . . . . . . Special . | . . . . . . . . Kinetic . | . . . . . . . . Thermal . | . . . . . . . . Explosive . | . . . . . . . . Electromagnetic . | . . . . . . . . Robot Hit Streak . | . . . . . . . . Robot Miss Streak . | . . . . . . . . Penetration Max . | . . . . . . . . Secondary Targets . | . . . . . . . . Shots Hit Robots . | . . . . . . . . Core Hits . | . . . . . . . . Critical Kills . | . . . . . . . . Critical Parts Destroyed . | . . . . . . . . Critical Strikes . | . . . . . . . . Melee Attacks . | . . . . . . . . Impact . | . . . . . . . . Slashing . | . . . . . . . . Piercing . | . . . . . . . . Sneak Attacks . | . . . . . . . . Combat Hostiles . | . . . . . . . . Follow-up Attacks . | . . . . . . . . Damage Inflicted 21 | . . . . . . . 21 Guns . | . . . . . . . . Cannons . | . . . . . . . . Explosions . | . . . . . . . . Melee . | . . . . . . . . Ramming 21 | . . . . . . . 21 Kinetic . | . . . . . . . . Thermal . | . . . . . . . . Explosive . | . . . . . . . . Electromagnetic . | . . . . . . . . Impact . | . . . . . . . . Slashing . | . . . . . . . . Piercing . | . . . . . . . . Highest Corruption 1 | . . . . . . . 1 Average Corruption 1 | . . . . . . . 1 Corruption Purged . | . . . . . . . . Corruption Blocked . | . . . . . . . . Overload Shots . | . . . . . . . . Overflow Damage . | . . . . . . . . Projectiles . | . . . . . . . . Explosions . | . . . . . . . . Melee . | . . . . . . . . Knockbacks . | . . . . . . . . Impact . | . . . . . . . . Kinetic . | . . . . . . . . Secondary . | . . . . . . . . Self-Inflicted Damage 10 | . . . . . . . 10 Shots . | . . . . . . . . Rammed 3 | . . . . . . . 3 Targets Rammed 3 | . . . . . . . 3 Kicked . | . . . . . . . . Crushed . | . . . . . . . . Highest Temperature 49 | . . . . 36 . . 49 Average Temperature 19 | . . . . 21 . . 18 Received Heat Transfer 433 | . . . . 90 . . 343 Siege Activations . | . . . . . . . . Martial Activations . | . . . . . . . . Shielding Activations . | . . . . . . . . Robots Disrupted . | . . . . . . . . Combat Hostiles . | . . . . . . . . Robots Corrupted . | . . . . . . . . Combat Hostiles . | . . . . . . . . Parts Fried . | . . . . . . . . Impact Corruptions . | . . . . . . . . Robots Melted . | . . . . . . . . Combat Hostiles . | . . . . . . . . Parts Melted . | . . . . . . . . Heat Transferred . | . . . . . . . . Parts Sabotaged . | . . . . . . . . Parts Stolen . | . . . . . . . . Parts Stripped . | . . . . . . . . Power Chain Reactions . | . . . . . . . . Alert | -11 -10 -9 -9 -8 -7 -7 -6 ------- Run | Yrd Mat Mat Min Mat Fac Sto Fac Maximum Alert Level . | . . . . . . . . Low Security (%) 100 | 100 100 100 100 100 100 100 100 Level 1 . | . . . . . . . . Level 2 . | . . . . . . . . Level 3 . | . . . . . . . . Level 4 . | . . . . . . . . Level 5 . | . . . . . . . . High Security . | . . . . . . . . Max Security . | . . . . . . . . Peak Influence 155 | . . . . 155 47 20 45 Initial 47 | . . . . . 47 16 9 Average 9 | . . . . 44 43 1 11 Influence Increases 270 | . . . . 165 . 30 75 Partial Spotted 30 | . . . . 15 . 15 . Lose Combat Pursuer 240 | . . . . 150 . 15 75 Influence Decreases 270 | . . . . 60 68 47 95 Entered New Map 90 | . . . . . 58 21 11 Time Decay 134 | . . . . 30 10 25 69 Lost Part 44 | . . . . 30 . . 14 Miscellaneous 2 | . . . . . . 1 1 Squads Dispatched 4 | . . . . 2 . . 2 Investigation 1 | . . . . 1 . . . Extermination 1 | . . . . . . . 1 Reinforcement 2 | . . . . 1 . . 1 Assault . | . . . . . . . . Garrison . | . . . . . . . . Intercept . | . . . . . . . . Searches Triggered . | . . . . . . . . Construction Impeded . | . . . . . . . . Haulers Reinforced . | . . . . . . . . Active Scanning Responses . | . . . . . . . . Cargo Convoy Interrupts . | . . . . . . . . Stealth | -11 -10 -9 -9 -8 -7 -7 -6 --------- Run | Yrd Mat Mat Min Mat Fac Sto Fac Distress Signals 1 | . . . . 1 . . . Communications Jammed . | . . . . . . . . Distress Signals . | . . . . . . . . Times Spotted 96 | . . . . 60 . 17 19 Peak Tracking Total 20 | . . . . 20 . 11 5 Tactical Retreats 5 | . . . . 2 . 1 2 Traps | -11 -10 -9 -9 -8 -7 -7 -6 ------- Run | Yrd Mat Mat Min Mat Fac Sto Fac Traps Triggered 1 | . . . . . . . 1 Indirectly . | . . . . . . . . Trap Hack Attempts . | . . . . . . . . Triggered . | . . . . . . . . Disarmed . | . . . . . . . . Reprogrammed . | . . . . . . . . Reused . | . . . . . . . . Traps Extracted . | . . . . . . . . Installed . | . . . . . . . . Triggered . | . . . . . . . . Machines | -11 -10 -9 -9 -8 -7 -7 -6 ---------- Run | Yrd Mat Mat Min Mat Fac Sto Fac Machines Disabled . | . . . . . . . . Max in Single Turn . | . . . . . . . . Machines Repaired . | . . . . . . . . Machines Dismantled . | . . . . . . . . Machines Sabotaged . | . . . . . . . . Overloaded Fab Kills . | . . . . . . . . Hacking | -11 -10 -9 -9 -8 -7 -7 -6 --------- Run | Yrd Mat Mat Min Mat Fac Sto Fac Machines Accessed 3 | . . . . 1 . 2 . Terminals 3 | . . . . 1 . 2 . Fabricators . | . . . . . . . . Repair Stations . | . . . . . . . . Recycling Units . | . . . . . . . . Scanalyzers . | . . . . . . . . Garrison Access . | . . . . . . . . Total Hacks 5 | . . . . 3 . 2 . Successful 1 | . . . . . . 1 . Failed 4 | . . . . 3 . 1 . Catastrophic . | . . . . . . . . Database Lockouts . | . . . . . . . . Manual 4 | . . . . 3 . 1 . Terminals 5 | . . . . 3 . 2 . Fabricators . | . . . . . . . . Repair Stations . | . . . . . . . . Recycling Units . | . . . . . . . . Scanalyzers . | . . . . . . . . Garrison Access . | . . . . . . . . Terminal Hacks 1 | . . . . . . 1 . Open Door 1 | . . . . . . 1 . Fabricator Hacks . | . . . . . . . . Repair Station Hacks . | . . . . . . . . Recycling Unit Hacks . | . . . . . . . . Scanalyzer . | . . . . . . . . Garrison Access Hacks . | . . . . . . . . Unauthorized Hacks . | . . . . . . . . Terminals . | . . . . . . . . Fabricators . | . . . . . . . . Repair Stations . | . . . . . . . . Recycling Units . | . . . . . . . . Scanalyzers . | . . . . . . . . Garrison Access . | . . . . . . . . Data Cores Recovered . | . . . . . . . . Used . | . . . . . . . . Hacking Detections 2 | . . . . 1 . 1 . Full Trace Events 1 | . . . . 1 . . . Feedback Events . | . . . . . . . . Feedback Blocked . | . . . . . . . . Robot Schematics Acquired . | . . . . . . . . Robots Built . | . . . . . . . . Authchips . | . . . . . . . . Time . | . . . . . . . . Total Robot Build Rating . | . . . . . . . . Part Schematics Acquired . | . . . . . . . . Parts Built . | . . . . . . . . Authchips . | . . . . . . . . Time . | . . . . . . . . Total Part Build Rating . | . . . . . . . . Part Studies Acquired . | . . . . . . . . Parts Repaired . | . . . . . . . . Time . | . . . . . . . . Parts Recycled . | . . . . . . . . Recycled Matter . | . . . . . . . . Retrieved Matter . | . . . . . . . . Retrieved Components . | . . . . . . . . Parts Scanalyzed . | . . . . . . . . Part Schematics Acquired . | . . . . . . . . Parts Damaged . | . . . . . . . . Bothacking | -11 -10 -9 -9 -8 -7 -7 -6 ------------ Run | Yrd Mat Mat Min Mat Fac Sto Fac Used RIF Installer . | . . . . . . . . Robots Hacked 10 | . . 1 . 4 . 2 3 Non-combat 6 | . . 1 . 1 . 1 3 Combat 4 | . . . . 3 . 1 . Robot Hacks Applied 14 | . . 1 . 7 . 3 3 find_chute 2 | . . . . . . . 2 locate_stockpiles 1 | . . 1 . . . . . find_recycling 1 | . . . . . . 1 . find_terminals 2 | . . . . 1 . . 1 find_shortcuts 4 | . . . . 3 . 1 . find_garrison 4 | . . . . 3 . 1 . Relay Couplers Released . | . . . . . . . . Fabnet Peak Effective % . | . . . . . . . . Robots Rewired . | . . . . . . . . Allies Hacked . | . . . . . . . . Hacks Repelled . | . . . . . . . . Allies | -11 -10 -9 -9 -8 -7 -7 -6 -------- Run | Yrd Mat Mat Min Mat Fac Sto Fac Total Allies 2 | . . . 2 . . . . Largest Group 2 | . . . 2 . . . . Highest-Rated Group 41 | . . . 41 . . . . Highest-Rated Ally 31 | . . . 31 . . . . Total Orders . | . . . . . . . . Ally Attacks 2 | . . . 2 . . . . Total Damage 40 | . . . 40 . . . . Kills . | . . . . . . . . Allies Corrupted . | . . . . . . . . Allies Melted . | . . . . . . . . Intel | -11 -10 -9 -9 -8 -7 -7 -6 ------- Run | Yrd Mat Mat Min Mat Fac Sto Fac Active Infowar (turns) 216 | . . 59 157 . . . . Terrain 144 | . . . 144 . . . . Seismic 144 | . . . 144 . . . . T.N.C. 72 | . . 59 13 . . . . Robot Analysis Total 9 | 1 . 1 2 3 . 1 1 Derelict Logs Recovered 1 | . . . 1 . . . . Drone Launches . | . . . . . . . . Drone Recoveries . | . . . . . . . . Exploration | -11 -10 -9 -9 -8 -7 -7 -6 ------------- Run | Yrd Mat Mat Min Mat Fac Sto Fac Turns Passed 1360 | 22 132 123 286 153 31 299 314 Spaces Moved 2026 | 34 129 101 351 325 76 429 581 Core 397 | 23 . 1 2 2 . 2 367 Treads 45 | . . 37 8 . . . . Legs 7 | . . . . 7 . . . Wheels 923 | 11 129 63 341 39 . 280 60 Hover 120 | . . . . 41 . . 79 Flight 534 | . . . . 236 76 147 75 Fastest Speed 32 | 50 100 50 50 37 40 32 32 Average Speed 65 | 66 100 121 81 46 40 67 52 Slowest Speed 160 | 100 100 160 160 120 40 100 80 Overloaded Moves . | . . . . . . . . Propulsion Burnouts . | . . . . . . . . Robots Hopped 10 | . . . . 8 . 2 . Potential Cave-ins . | . . . . . . . . Cave-ins Triggered . | . . . . . . . . Exploration Rate (%) 27 | 3 24 17 57 47 3 58 11 Regions Visited 7 Branch Regions 2 Pre-discovered Areas 1 | . . . 1 . . . . Known Exits Taken . | . . . . . . . . Unknown Exits Taken 7 | 1 1 1 1 1 1 1 . Scrap Searched . | . . . . . . . . Spaces Dug . | . . . . . . . . Terrain Destroyed . | . . . . . . . . Melee . | . . . . . . . . Projectile . | . . . . . . . . AOE . | . . . . . . . . Terrain Rammed . | . . . . . . . . Walls Destroyed . | . . . . . . . . Machines Disabled . | . . . . . . . . Actions | -11 -10 -9 -9 -8 -7 -7 -6 --------- Run | Yrd Mat Mat Min Mat Fac Sto Fac Total 2035 | 33 132 101 350 318 75 434 592 Wait 9 | . . . . 1 . . 8 Move 1999 | 33 128 100 350 308 75 424 581 Hop 10 | . . . . 8 . 2 . Pick Up 10 | . 4 1 . . . 5 . Fast Attach . | . . . . . . . . Attach . | . . . . . . . . Detach . | . . . . . . . . Swap . | . . . . . . . . Drop . | . . . . . . . . Fire . | . . . . . . . . Melee . | . . . . . . . . Ram 3 | . . . . . . . 3 Kick . | . . . . . . . . Crush . | . . . . . . . . Escape Stasis . | . . . . . . . . Rewire 3 | . . . . 1 . 2 . Trap . | . . . . . . . . Miscellaneous 1 | . . . . . . 1 . Route ------- -11/Scrapyard -10/Materials -9/Materials -9/Mines -8/Materials -7/Factory -7/Storage -6/Factory History --------- Turn | Location | Event 5 | -11/Scrapyard | Discovered new exit (range 16) 23 | -11/Scrapyard | Entered Materials 138 | -10/Materials | Discovered new exit (range 9) 155 | -10/Materials | Entered another Materials area 265 | -9/Materials | Discovered new exit (range 7) 278 | -9/Materials | Entered Mines 279 | -9/Mines | Assembled infested the area 472 | -9/Mines | Found a Scrap Suit stashed away for nefarious purposes 559 | -9/Mines | Discovered new exit (range 6) 564 | -9/Mines | Entered Materials 711 | -8/Materials | Discovered new exit (range 16) 717 | -8/Materials | Entered Factory 743 | -7/Factory | Discovered new exit (range 11) 745 | -7/Factory | Lost 3 parts (1p2n) 748 | -7/Factory | Entered Storage 1045 | -7/Storage | Discovered new exit (range 7) 1047 | -7/Storage | Entered Factory 1062 | -6/Factory | Spotted B-75 Beast 1179 | -6/Factory | Lost 5 parts (1p3n1u) 1205 | -6/Factory | Core integrity fell below 50% 1343 | -6/Factory | Core integrity fell below 20% 1361 | -6/Factory | Destroyed by G-67 Veteran with Field Laser Last Messages --------------- 01258_ Assembly Bed disabled. 01276_ Slammed into G-50 Soldier. 01308_ K-01 Serf collects debris. 01323_ Took control of K-01 Serf. 01327_ Pressure Siphon disabled. 01328_ K-01 Serf collects debris. 01332_ K-01 Serf cleans the Pressure Siphon. 01339_ Cleaned Garrison Access. 01341_ Cleaned Pressure Siphon. 01348_ Lgt. Ion Engine destroyed. 01351_ Door malfunctions. 01352_ Cleaned Pressure Siphon. 01355_ Pressure Siphon disabled. 01355_ Wheel destroyed. 01356_ Cleaned Pressure Siphon. 01357_ Wheel destroyed. 01357_ Critical hit (Burn: +37). 01358_ Critical hit (Burn: +50). 01360_ Sml. Matter Pod destroyed. 01360_ Lost control of K-01 Serf. Map ----- +----------------------------------------------------+ | | | | | | | ?????????????????????????????????????????????????? | | ?????????????????????????????????????????????????? | | ?????????????????????????????????????????????????? | | ?????????????????????????????????????????????????? | | ?????????????????????????????????????????????????? | | ?????????????????????????????????????????????????? | | ?????????????????????????????????????????????????? | | ?????????????????????????????????????????????????? | | ?????????????????????????????????????????????????? | | ?????????????????????????????????????????????????? | | ?????????????????????????????????????????????????? | | ?????????????????????????????????????????????????? | | ?????????????????????????????????????????????????? | | ?????????????????????????????????????????????????? | | ?????????????????????????????????????????????????? | | ?????????????????????????????????????????????????? | | ???????????????????########??????????????????????? | | ?????????????????? #################??????? | | ?????????????????""" """ # #??????? | | ???????????????? """ """ # #??????? | | ?????????????# ! """ """ # #??????? | | ?????????????? # #??????? | | ???????????????? [!! """ @/ ######## | | ???????????????? [! """ # =# | | ?????????????????[! """ # p g # | | ????????????????? # g """ # | | ?????????????????? # """"g"%"" """" G" # | | ????????????????? # """" """" """" """ + | | ???????????????? # """" """" """" # | | ????????????????###########[ # | | ??????????????????????????# """" """" """" # | | ??????????????????????????# """" """" """" # | | ??????????????????????????# """" """" """" | | ########################### | | """" """" """" ] | | """" """" """" | | """" """" %""" | | | | | | ################+############+#+######### | | ????????????# #??? ???????# | | ????????????# #??? ???????#####+#### | | ????????????# #??""" """????????? ?? | | ????????????# #??""" """??????? """""""" | | ############# #? """ """ ?????# | | !# #? ?????# """""""" | | """ """" # ## ]] ????# | +----------------------------------------------------+ Best States ------------- Heat Dissipation 25 Energy Generation 19 Energy Capacity 175 Matter Stores 100 Matter Capacity 125 Sight Range 16 Terrain Scan Range 16 Terrain Scan Density 10 Additional Mass Support 6 Evasion (%) 63 Recoil Reduction 2 Offensive Hacking 10 Defensive Hacking 10 Item Schematics ----------------- None Robot Schematics ------------------ None Fabricated ------------ Nothing Repaired ---------- Nothing Studied --------- None Alien Tech Used ----------------- None Achievements -------------- None Challenges ------------ None Polymind | -11 -10 -9 -9 -8 -7 -7 -6 ---------- Run | Yrd Mat Mat Min Mat Fac Sto Fac Hosts 14 | 1 . 1 2 4 . 3 3 Combat Hostiles 4 | . . . . 3 . 1 . Allies . | . . . . . . . . Unique Host Classes 7 | 1 . 1 2 3 . . . Average Host Suspicion 49 | 1 46 19 44 72 30 40 88 Unsuspicious Activity 408 | 2 . 2 97 26 . 231 50 Returns to Shadow . | . . . . . . . . Fuzzy Dispatches 1 | . . . . . . . 1 Protomatter Created 131 | . . . 123 . . . 8 Used 107 | 5 . 5 10 46 . 24 17 Decayed 45 | . . . 45 . . . . Highest Spend 29 | 5 . 5 5 29 . 14 7 Game ------ Seed polycule Manual? 1 Play Time 00:23:39 Cumulative 58.7 hours Start 2026.07.10 @ 17:04:11 End 2026.07.10 @ 17:27:28 Sessions 1 Manual Loads 0 Difficulty Rogue Special Mode Winter2022/Polymind Game No. 61 Rogue 6 Adventurer 55 Explorer 0 Win Type - Total 1 Types 1/0/0/0/0/0/0/0/0/0 Lore% 33 Gallery% 33 Achievement% 26 Wizard Run 0 Options --------- Layout 1 ASCII 0 Keyboard 0 Movement Mouse Keybinds 0 Fullscreen 2 Font 24/Smallcaps Map View 50x35 Zoom Use 0% Tactical HUD 1 Map Filters NONE Filters NONE Steam 1 RUN: 920781f3-3024-4e8f-971c-b01412ab6c12